bitfinex/quotes_SOLUSD_20241216
["timestamp","ask_amount","ask_price","bid_price","bid_amount"]
[1734314869983,0.83586436,224.36,224.31,11.70148728]
[1734314870184,0.83586436,224.36,224.3,11.70148728]
[1734314870789,0.83586436,224.36,224.31,11.70148728]
[1734314871304,0.83586436,224.36,224.3,11.70148728]
[1734314873399,0.83586436,224.36,224.31,11.70148728]
[1734314874907,13.34,224.35,224.22,0.5360558]
[1734314875097,8.1345,224.33,224.22,0.5360558]
[1734314875418,0.83621487,224.32,224.22,0.5360558]
[1734314875715,14.17621487,224.32,224.22,0.5360558]
[1734314876714,11.1452,224.31,224.22,0.5360558]
[1734314876909,0.83628175,224.3,224.22,0.5360558]
[1734314877679,11.1462,224.29,224.22,0.5360558]
[1734314877882,0.83627954,224.28,224.22,0.5360558]
[1734314878511,6.564,224.26,224.22,0.5360558]
[1734314878823,0.83647446,224.25,224.22,0.5360558]
[1734314879513,11.98477446,224.25,224.22,0.5360558]
[1734314880107,0.83647446,224.25,224.22,0.5360558]
[1734314883814,11.1487,224.24,224.22,0.5360558]
[1734314884008,0.83645966,224.23,224.22,0.5360558]
[1734314889275,0.83628781,224.24,224.22,0.5360558]
[1734314891233,0.8362824,224.25,224.22,0.5360558]
[1734314892368,0.83623445,224.26,224.22,0.5360558]
[1734314893363,0.83619653,224.27,224.22,0.5360558]
[1734314893669,6.177,224.31,224.22,0.5360558]
[1734314893670,0.83617239,224.3,224.22,0.5360558]
[1734314894980,0.83617239,224.3,224.22,12.23754308]
[1734314895280,0.83617239,224.3,224.24,11.70148728]
[1734314895476,0.83617239,224.3,224.23,11.70148728]
[1734314895851,0.83617239,224.3,224.22,0.5360558]
[1734314897862,0.83617418,224.31,224.23,11.70148728]
[1734314898063,0.83617418,224.31,224.25,11.70148728]
[1734314898377,0.83605147,224.32,224.25,11.70148728]
[1734314898574,0.83603935,224.35,224.25,11.70148728]
[1734314899277,0.83603935,224.35,224.23,11.70148728]
[1734314900686,0.83603935,224.35,224.25,11.70148728]
[1734314901872,0.83603935,224.35,224.22,0.5360558]
[1734314901873,11.1437,224.34,224.22,0.5360558]
[1734314902072,0.8360933,224.33,224.23,11.70148728]
[1734314905300,0.8360933,224.33,224.25,11.70148728]
[1734314905472,0.83594248,224.35,224.25,11.70148728]
[1734314906082,0.83594248,224.35,224.25,7.49028755]
[1734314909603,11.97934248,224.35,224.22,1.20487431]
[1734314909809,11.97934248,224.35,224.22,0.5360558]
[1734314912785,11.1442,224.33,224.22,0.5360558]
[1734314912995,0.83614799,224.32,224.22,0.5360558]
[1734314914136,11.1452,224.31,224.22,0.5360558]
[1734314914289,0.83608743,224.3,224.23,7.49028755]
[1734314914700,1.5333,224.34,224.23,7.49028755]
[1734314914898,0.83600237,224.33,224.23,7.49028755]
[1734314916718,0.83600237,224.33,224.25,7.49028755]
[1734314917626,0.83600237,224.33,224.23,0.66878315]
[1734314917627,2.36921624,224.34,224.27,7.49028755]
[1734314920823,2.36921624,224.34,224.25,7.49028755]
[1734314921033,24.07284268,224.41,224.22,0.5360558]
[1734314921034,6.494,224.32,224.22,0.5360558]
[1734314921354,13.38,224.29,224.22,0.5360558]
[1734314921655,33.51503168,224.28,224.22,0.5360558]
[1734314922448,11.1472,224.27,224.22,0.5360558]
[1734314922650,0.83644917,224.26,224.22,0.5360558]
[1734314924366,11.1482,224.25,224.22,5.58e-05]
[1734314924564,0.83640432,224.24,224.22,5.58e-05]
[1734314925369,11.1492,224.23,224.22,5.58e-05]
[1734314925746,12.7425,224.23,224.22,5.58e-05]
[1734314926145,19.0565,224.23,224.22,5.58e-05]
[1734314926464,41.355,224.23,224.06,11.7172138]
[1734314926663,0.83658256,224.22,224.06,11.7172138]
[1734314927287,11.1502,224.21,224.06,11.7172138]
[1734314927575,0.83656598,224.2,224.06,11.7172138]
[1734314927747,0.83656598,224.2,224.08,11.7172138]
[1734314928890,11.1512,224.19,224.08,11.7172138]
[1734314929194,0.83656577,224.18,224.08,11.7172138]
[1734314929492,0.83656577,224.18,224.06,11.7172138]
[1734314932184,0.83656577,224.18,224.07,12.38646072]
[1734314932495,0.83656577,224.18,224.08,11.7172138]
[1734314933165,30.2058,224.23,224.04,6.08]
[1734314933166,0.83648404,224.22,224.1,11.7172138]
[1734314936188,11.1502,224.21,224.05,0.66910354]
[1734314936486,0.83651762,224.2,224.07,11.7172138]
[1734314937113,0.83651762,224.2,224.06,11.7172138]
[1734314937401,11.1512,224.19,224.06,11.7172138]
[1734314937575,0.83651418,224.18,224.06,11.7172138]
[1734314938080,0.83651418,224.18,224.07,11.7172138]
[1734314938396,0.83651418,224.18,224.07,12.38641439]
[1734314940296,0.83651418,224.18,224.07,0.66920059]
[1734314940480,0.83651418,224.18,224.08,11.7172138]
[1734314940675,11.1512,224.19,224.09,0.66920045]
[1734314940987,11.1512,224.19,224.1,11.7172138]
[1734314943094,11.1512,224.19,224.09,0.66920045]
[1734314943296,0.83643465,224.18,224.08,11.7172138]
[1734314943807,11.1522,224.17,224.02,0.66921522]
[1734314944011,2.40846581,224.16,224.03,11.7172138]
[1734314944301,6.0562,224.15,224.04,11.7172138]
[1734314944505,0.83664985,224.14,224.04,11.7172138]
[1734314944670,0.83664985,224.14,224.02,0.66921522]
[1734314944871,11.1542,224.13,224.0,12.92264214]
[1734314945222,0.83670596,224.12,224.0,12.92264214]
[1734314945370,0.83670596,224.12,224.01,11.7172138]
[1734314945572,0.83670596,224.12,224.04,11.7172138]
[1734314945768,11.1542,224.13,224.05,11.7172138]
[1734314946088,6.0562,224.15,224.05,7.50339954]
[1734314946292,6.89280934,224.15,224.05,7.50339954]
[1734314946594,6.89280934,224.15,224.06,7.50339954]
[1734314946774,6.0562,224.15,224.08,7.50339954]
[1734314947093,1.5718,224.16,224.09,8.17261392]
[1734314949576,6.5606,224.2,224.11,7.50339954]
[1734314950813,6.5606,224.2,224.11,0.66910031]
[1734314951103,6.5606,224.2,224.11,8.17249985]
[1734314952310,1.5341,224.22,224.14,7.50339954]
[1734314952517,1.5341,224.22,224.15,7.50339954]
[1734314952678,1.5341,224.22,224.14,7.50339954]
[1734314953224,1.5341,224.22,224.15,8.17236918]
[1734314953514,1.5341,224.22,224.15,0.66896964]
[1734314953692,1.5341,224.22,224.15,8.17236918]
[1734314955518,1.5341,224.22,224.16,7.50339954]
[1734314955706,1.6385,224.27,224.18,7.50339954]
[1734314956422,0.83612506,224.26,224.13,0.6688604]
[1734314956717,0.83612506,224.26,224.16,7.50339954]
[1734314957711,0.83612506,224.26,224.17,7.50339954]
[1734314958018,1.6385,224.27,224.17,7.50339954]
[1734314958229,1.6385,224.27,224.18,7.50339954]
[1734314958912,1.6385,224.27,224.17,7.50339954]
[1734314959426,1.6385,224.27,224.18,7.50339954]
[1734314961128,1.6385,224.27,224.19,7.50339954]
[1734314961302,1.6385,224.27,224.13,0.6688604]
[1734314961502,1.6385,224.27,224.19,7.50339954]
[1734314962130,1.6385,224.27,224.2,7.50339954]
[1734314963644,1.6385,224.27,224.21,7.50339954]
[1734314963795,6.162,224.3,224.25,7.50339954]
[1734314964000,12.672,224.33,224.25,7.50339954]
[1734314964204,1.5274,224.33,224.26,7.50339954]
[1734314964403,1.5274,224.33,224.25,7.50339954]
[1734314965332,1.5274,224.33,224.24,7.50339954]
[1734314966530,1.5274,224.33,224.25,7.50339954]
[1734314967249,1.5274,224.33,224.24,7.50339954]
[1734314967622,0.83589614,224.32,224.19,0.66871691]
[1734314967802,0.83589614,224.32,224.2,7.50339954]
[1734314968239,0.83589614,224.32,224.21,7.50339954]
[1734314969313,11.98059614,224.32,224.21,7.50339954]
[1734314971240,11.98059614,224.32,224.2,7.50339954]
[1734314976147,11.98059614,224.32,224.19,8.17211645]
[1734314976611,11.98059614,224.32,224.19,0.66871691]
[1734314976812,11.98059614,224.32,224.19,7.50339954]
[1734314977423,8.0719,224.31,224.1,5.0]
[1734314977615,0.8361867,224.3,224.14,7.50339954]
[1734314977936,0.8361867,224.3,224.15,7.50339954]
[1734314978648,11.1462,224.29,224.15,7.50339954]
[1734314978814,0.83620974,224.28,224.15,7.50339954]
[1734314979559,7.9298,224.27,224.11,7.50339954]
[1734314979842,0.83639118,224.26,224.11,7.50339954]
[1734314980527,7.9298,224.27,224.15,7.50339954]
[1734314980751,7.9298,224.27,224.16,0.6689085]
[1734314982066,7.9298,224.27,224.17,7.50339954]
[1734314982231,7.9298,224.27,224.19,7.50339954]
[1734314982432,1.5312,224.27,224.21,7.50339954]
[1734314983436,1.5312,224.27,224.23,7.50339954]
[1734314983636,17.3293,224.33,224.23,7.50339954]
[1734314983837,1.5806,224.32,224.23,7.50339954]
[1734314984045,1.5806,224.32,224.24,8.17212865]
[1734314984381,1.5806,224.32,224.25,7.50339954]
[1734314985172,1.5806,224.32,224.27,7.50339954]
[1734314985372,1.5806,224.32,224.26,8.1720781]
[1734314986432,1.6638,224.36,224.27,7.50339954]
[1734314986655,1.6638,224.36,224.27,8.17197136]
[1734314986866,0.83573945,224.35,224.23,0.66859156]
[1734314987065,0.83573945,224.35,224.25,7.50339954]
[1734314988461,2.49964779,224.36,224.25,8.17207777]
[1734314989260,2.49964779,224.36,224.26,7.50339954]
[1734314989682,1.6638,224.36,224.26,7.50339954]
[1734314990347,1.6638,224.36,224.27,0.66863003]
[1734314990869,1.6638,224.36,224.28,7.50339954]
[1734314991045,1.6638,224.36,224.3,7.50339954]
[1734314991243,6.367,224.38,224.32,7.50339954]
[1734314991897,1.6628,224.42,224.32,7.50339954]
[1734314992247,1.6628,224.42,224.33,0.66845288]
[1734314992580,1.6628,224.42,224.33,8.17185242]
[1734314993277,1.6628,224.42,224.34,7.50339954]
[1734314993474,1.6628,224.42,224.35,0.66839915]
[1734314993691,1.6628,224.42,224.35,8.17179869]
[1734314993887,1.6628,224.42,224.37,7.50339954]
[1734314994252,1.6628,224.42,224.35,8.17179869]
[1734314997399,1.6628,224.42,224.35,0.66839915]
[1734314997560,1.6628,224.42,224.34,7.50339954]
[1734314998072,1.6628,224.42,224.35,8.17177676]
[1734314999695,1.6594,224.48,224.38,7.50339954]
[1734315000004,1.6594,224.48,224.41,7.50339954]
[1734315000163,1.6594,224.48,224.42,0.66814096]
[1734315000589,1.6594,224.48,224.42,8.1715405]
[1734315001573,1.6215,224.53,224.45,7.50339954]
[1734315001806,1.6215,224.53,224.44,7.50339954]
[1734315001968,1.6215,224.53,224.44,8.17149778]
[1734315002169,1.6215,224.53,224.44,0.66809824]
[1734315002905,2.45663079,224.53,224.42,27.23195938]
[1734315003403,2.45663079,224.53,224.43,7.50339954]
[1734315003771,1.6215,224.53,224.43,7.50339954]
[1734315003978,1.6215,224.53,224.44,8.17150959]
[1734315004296,2.45663204,224.53,224.44,8.17150959]
[1734315004507,1.6215,224.53,224.44,8.17150959]
[1734315005509,2.45664251,224.53,224.44,8.17150959]
[1734315005802,1.6215,224.53,224.44,8.17150959]
[1734315006003,2.45665848,224.53,224.44,8.17150959]
[1734315006170,2.45665848,224.53,224.42,19.72855984]
[1734315006368,11.1348,224.52,224.42,19.72855984]
[1734315006603,0.83526059,224.51,224.42,19.72855984]
[1734315007670,0.83526059,224.51,224.42,27.23195938]
[1734315007871,1.6215,224.53,224.47,7.50339954]
[1734315008097,1.6215,224.53,224.42,19.72855984]
[1734315008098,1.6215,224.53,224.49,7.50339954]
[1734315008597,1.601,224.58,224.49,7.50339954]
[1734315008801,1.601,224.58,224.53,7.50339954]
[1734315010014,1.601,224.58,224.53,11.67560893]
[1734315010176,1.601,224.58,224.51,11.67560893]
[1734315013380,1.601,224.58,224.5,11.67560893]
[1734315014106,1.601,224.58,224.51,11.67560893]
[1734315014484,1.601,224.58,224.52,11.67560893]
[1734315020115,1.601,224.58,224.5,11.67560893]
[1734315020332,2.43594648,224.58,224.48,11.67560893]
[1734315021942,1.601,224.58,224.5,11.67560893]
[1734315025520,1.601,224.58,224.51,11.67560893]
[1734315026821,1.601,224.58,224.52,11.67560893]
[1734315028318,2.43590548,224.58,224.51,11.67560893]
[1734315028735,2.43590548,224.58,224.49,11.67560893]
[1734315029052,1.601,224.58,224.5,11.67560893]
[1734315029339,1.601,224.58,224.51,11.67560893]
[1734315032140,1.601,224.58,224.51,7.47350669]
[1734315032641,1.601,224.58,224.5,7.47350669]
[1734315034238,1.601,224.58,224.51,7.47350669]
[1734315041254,1.601,224.58,224.47,20.39262841]
[1734315041563,0.83492133,224.57,224.47,19.72463357]
[1734315042223,11.96722133,224.57,224.47,19.72463357]
[1734315042619,11.96722133,224.57,224.36,0.66813782]
[1734315042620,7.8126,224.56,224.36,0.66813782]
[1734315042851,1.5397,224.54,224.39,7.47350669]
[1734315043053,1.5397,224.54,224.38,7.47350669]
[1734315043054,0.83542532,224.53,224.38,7.47350669]
[1734315043255,0.83542532,224.53,224.39,7.47350669]
[1734315043451,11.1348,224.52,224.39,7.47350669]
[1734315043751,0.83537682,224.51,224.39,7.47350669]
[1734315044351,11.1348,224.52,224.42,7.47350669]
[1734315045425,0.83523427,224.51,224.42,7.47350669]
[1734315045852,0.83523427,224.51,224.4,7.47350669]
[1734315046036,0.83523427,224.51,224.36,0.66822273]
[1734315046037,0.83523427,224.51,224.39,7.47350669]
[1734315046359,6.4779,224.49,224.39,7.47350669]
[1734315046660,0.83538336,224.48,224.39,7.47350669]
[1734315049969,6.4779,224.49,224.42,7.47350669]
[1734315050564,6.4779,224.49,224.41,7.47350669]
[1734315051564,6.4779,224.49,224.34,0.66821729]
[1734315051777,0.83528714,224.48,224.39,7.47350669]
[1734315052871,0.83528714,224.48,224.38,7.47350669]
[1734315055972,1.577,224.47,224.38,7.47350669]
[1734315056178,0.83548225,224.46,224.38,7.47350669]
[1734315056901,0.83548225,224.46,224.34,0.66821729]
[1734315057071,0.83548225,224.46,224.38,7.47350669]
[1734315058872,0.83548225,224.46,224.34,0.66821729]
[1734315059065,0.83548225,224.46,224.37,7.47350669]
[1734315060502,2.41245776,224.47,224.39,7.47350669]
[1734315062000,1.577,224.47,224.39,7.47350669]
[1734315062593,1.577,224.47,224.38,7.47350669]
[1734315063594,0.8353851,224.46,224.34,0.66821729]
[1734315063766,0.8353851,224.46,224.35,7.47350669]
[1734315065003,0.8353851,224.46,224.36,7.47350669]
[1734315068096,11.1383,224.45,224.33,7.47350669]
[1734315068313,0.83567004,224.44,224.31,7.47350669]
[1734315068604,1.5099,224.42,224.28,7.47350669]
[1734315068768,0.83577871,224.41,224.28,7.47350669]
[1734315071407,0.83577871,224.41,224.26,5.11865288]
[1734315071408,11.1408,224.4,224.26,5.11865288]
[1734315071633,7.578,224.38,224.24,30.8177211]
[1734315071781,0.83593461,224.37,224.24,30.8177211]
[1734315071977,1.5695,224.36,224.24,30.8177211]
[1734315072290,6.0085,224.34,224.24,30.8177211]
[1734315072474,0.83604438,224.33,224.24,30.8177211]
[1734315077608,1.6021,224.31,224.24,30.8177211]
[1734315077904,0.83613752,224.3,224.16,8.14230434]
[1734315078807,0.83613752,224.3,224.17,7.47350669]
[1734315079106,0.83613752,224.3,224.18,7.47350669]
[1734315079280,0.83613752,224.3,224.17,7.47350669]
[1734315080412,6.3033,224.28,224.12,0.66889489]
[1734315080615,1.6021,224.26,224.12,0.66889489]
[1734315080802,0.83633866,224.25,224.11,7.47350669]
[1734315081278,0.83633866,224.25,224.12,7.47350669]
[1734315082112,11.98473866,224.25,224.12,7.47350669]
[1734315082704,6.2545,224.24,224.09,8.14257762]
[1734315083004,0.83639927,224.23,224.1,7.47350669]
[1734315084205,0.83639927,224.23,224.11,7.47350669]
[1734315085014,0.83639927,224.23,224.1,7.47350669]
[1734315085918,0.83639927,224.23,224.07,0.66911955]
[1734315086083,0.83639927,224.23,224.1,7.47350669]
[1734315087409,7.09088797,224.24,224.14,7.47350669]
[1734315088213,7.09088797,224.24,224.13,7.47350669]
[1734315088516,7.09088797,224.24,224.12,7.47350669]
[1734315089417,7.09088797,224.24,224.11,7.47350669]
[1734315090024,7.09088797,224.24,224.11,7.34963581]
[1734315090613,7.09088797,224.24,224.06,0.66908938]
[1734315090788,7.09088797,224.24,224.11,7.47350669]
[1734315091609,7.09088797,224.24,224.12,0.66905933]
[1734315093318,11.1492,224.23,224.09,7.47350669]
[1734315093524,0.83641136,224.22,224.11,7.47350669]
[1734315094822,0.83641136,224.22,224.06,0.66910284]
[1734315095126,0.83641136,224.22,224.09,27.230172]
[1734315096227,12.6566,224.21,224.09,27.230172]
[1734315096404,0.83648316,224.2,224.09,27.230172]
[1734315097603,0.83648316,224.2,224.09,7.47350669]
[1734315097803,12.6566,224.21,224.11,7.47350669]
[1734315098212,0.83639075,224.2,224.11,7.47350669]
[1734315099543,0.83639075,224.2,224.09,8.14261929]
[1734315099896,0.83639075,224.2,224.09,0.6691126]
[1734315100106,6.4436,224.18,224.08,19.75881821]
[1734315100403,0.83659717,224.17,224.08,19.75881821]
[1734315101017,1.6374,224.16,224.08,19.75881821]
[1734315101226,0.83670251,224.15,224.08,19.75881821]
[1734315103409,11.1542,224.13,224.0,1.20544467]
[1734315103614,0.83674781,224.12,224.02,7.47350669]
[1734315104578,6.3068,224.14,224.04,7.47350669]
[1734315104913,6.3068,224.14,224.05,7.47350669]
[1734315105436,6.3068,224.14,224.07,7.47350669]
[1734315105634,6.3068,224.14,224.08,8.14273568]
[1734315105930,1.6374,224.16,224.08,8.14273568]
[1734315107535,1.6374,224.16,224.08,0.66922899]
[1734315107837,1.6374,224.16,224.1,7.47350669]
[1734315108043,1.6374,224.16,224.1,8.14262624]
[1734315108221,1.6374,224.16,224.1,7.47350669]
[1734315108432,1.6374,224.16,224.09,7.47350669]
[1734315109137,1.6374,224.16,224.08,7.47350669]
[1734315109538,1.5795,224.14,224.05,0.66911313]
[1734315109749,1.5795,224.14,224.0,0.5360558]
[1734315109750,1.5795,224.12,224.0,0.5360558]
[1734315109923,0.83684753,224.11,224.0,0.5360558]
[1734315111539,0.83684753,224.11,224.01,7.47350669]
[1734315111945,12.7346,224.12,224.01,7.47350669]
[1734315111946,1.5795,224.12,224.01,0.66943175]
[1734315112138,1.5795,224.12,224.04,7.47350669]
[1734315112725,1.5795,224.12,224.0,0.5360558]
[1734315112726,1.5795,224.12,224.07,7.47350669]
[1734315112948,1.5795,224.12,224.05,0.6693465]
[1734315113258,1.5795,224.12,224.07,7.47350669]
[1734315113734,1.5795,224.12,224.05,0.6693465]
[1734315113934,1.5795,224.12,224.06,11.7240594]
[1734315114441,1.5795,224.12,224.07,11.7240594]
[1734315115642,1.5795,224.12,224.06,11.7240594]
[1734315115956,1.5795,224.12,224.07,11.7240594]
[1734315117159,1.5795,224.12,224.05,11.7240594]
[1734315117654,1.5795,224.12,224.06,11.7240594]
[1734315120744,1.5795,224.12,224.01,0.66923822]
[1734315120745,1.5795,224.12,224.07,11.7240594]
[1734315121072,7.9,224.18,224.1,11.7240594]
[1734315122657,7.9,224.18,224.11,11.7240594]
[1734315123039,7.9,224.18,224.04,20.6508594]
[1734315123040,7.9,224.18,224.14,11.7240594]
[1734315123236,1.5737,224.18,224.14,11.7240594]
[1734315124454,8.0816,224.23,224.15,11.7240594]
[1734315124667,8.0816,224.23,224.17,11.7240594]
[1734315124860,8.0816,224.23,224.15,11.7240594]
[1734315125964,0.83623501,224.22,224.1,11.7240594]
[1734315126170,11.98593501,224.22,224.1,11.7240594]
[1734315126373,11.98593501,224.22,224.09,31.48090163]
[1734315127368,11.98593501,224.22,224.1,11.7240594]
[1734315129558,11.98593501,224.22,224.11,11.7240594]
[1734315129963,11.98593501,224.22,224.09,31.48090163]
[1734315130168,11.98593501,224.22,224.1,11.7240594]
[1734315130573,11.98593501,224.22,224.09,19.75684223]
[1734315131070,11.98593501,224.22,224.1,11.7240594]
[1734315131260,11.98593501,224.22,224.11,11.7240594]
[1734315131768,8.0816,224.23,224.14,11.7240594]
[1734315131971,0.83627601,224.22,224.14,11.7240594]
[1734315132355,0.83627601,224.22,224.13,11.7240594]
[1734315132656,8.0816,224.23,224.14,11.7240594]
[1734315133038,8.0816,224.23,224.15,11.7240594]
[1734315133456,8.0816,224.23,224.14,11.7240594]
[1734315133974,8.0816,224.23,224.15,7.49808436]
[1734315134357,8.0816,224.23,224.14,7.49808436]
[1734315135471,8.0816,224.23,224.11,0.6690997]
[1734315135472,8.0816,224.23,224.12,7.49808436]
[1734315135858,0.83630699,224.22,224.12,7.49808436]
[1734315137054,0.83630699,224.22,224.09,20.42588782]
[1734315137055,0.83630699,224.22,224.1,7.49808436]
[1734315137565,11.1502,224.21,224.09,19.75684223]
[1734315137870,0.83653598,224.2,224.09,27.25492659]
[1734315138160,0.83653598,224.2,224.09,19.75684223]
[1734315138548,7.9603,224.19,224.09,19.75684223]
[1734315138748,11.98872051,224.18,224.09,19.75684223]
[1734315140359,11.98872051,224.18,224.03,7.49808436]
[1734315140360,1.6256,224.17,224.03,7.49808436]
[1734315140560,0.83675362,224.16,224.01,7.49808436]
[1734315140764,11.1532,224.15,224.01,7.49808436]
[1734315140969,0.83679275,224.14,224.01,7.49808436]
[1734315142051,6.1149,224.13,224.01,7.49808436]
[1734315142382,0.83678649,224.12,224.01,7.49808436]
[1734315143960,1.5093,224.11,224.01,7.49808436]
[1734315144163,0.83684519,224.1,224.01,7.49808436]
[1734315144360,0.83684519,224.1,224.0,0.5360558]
[1734315144577,11.1562,224.09,224.0,0.5360558]
[1734315144866,0.83701374,224.08,224.0,0.5360558]
[1734315150356,0.83685335,224.09,224.0,8.03414016]
[1734315151276,1.5093,224.11,224.0,8.03414016]
[1734315151277,0.83682068,224.1,224.0,8.03414016]
[1734315155465,2.34608402,224.11,224.01,7.49808436]
[1734315155882,1.5093,224.11,224.05,7.49808436]
[1734315156488,1.5093,224.11,224.03,7.49808436]
[1734315157875,2.34599016,224.11,224.0,1.2054355]
[1734315158076,2.34599016,224.11,224.03,7.49808436]
[1734315158286,2.34599016,224.11,224.02,7.49808436]
[1734315158991,2.34599016,224.11,224.0,8.03414016]
[1734315167785,2.34599016,224.11,224.02,7.49808436]
[1734315168081,1.5093,224.11,224.06,7.49808436]
[1734315168513,1.5093,224.11,224.05,7.49808436]
[1734315168905,1.5093,224.11,224.04,7.49808436]
[1734315169103,1.5093,224.11,224.03,7.49808436]
[1734315169310,0.8367618,224.1,224.02,7.49808436]
[1734315169528,2.3460618,224.11,224.0,1.20546524]
[1734315169703,2.3460618,224.11,224.01,7.49808436]
[1734315169907,2.3460618,224.11,224.0,8.03414016]
[1734315170217,2.3460618,224.11,224.0,0.5360558]
[1734315170521,2.3460618,224.11,224.0,8.03414016]
[1734315171486,2.3460618,224.11,224.0,0.5360558]
[1734315172087,11.1557,224.1,224.0,0.5360558]
[1734315172288,0.83693288,224.09,224.0,0.5360558]
[1734315172906,6.1736,224.08,224.0,0.5360558]
[1734315173105,11.9943918,224.07,224.0,0.5360558]
[1734315174103,1.5643,224.06,224.0,0.5360558]
[1734315174309,2.40132439,224.06,224.0,0.5360558]
[1734315176947,11.1582,224.05,224.0,0.5360558]
[1734315177099,0.83710489,224.04,224.0,0.5360558]
[1734315178320,0.83703543,224.05,224.0,0.5360558]
[1734315183922,1.5643,224.06,224.0,0.5360558]
[1734315189237,11.99514312,224.05,224.0,0.5360558]
[1734315192602,0.83694312,224.05,224.0,0.5360558]
[1734315194129,1.5643,224.06,224.0,0.5360558]
[1734315196617,1.5643,224.06,224.0,8.03414016]
[1734315198399,1.6228,224.11,224.0,8.03414016]
[1734315198603,0.83678097,224.1,224.0,8.03414016]
[1734315198834,0.83678097,224.1,224.01,7.49808436]
[1734315202832,11.1562,224.09,224.0,0.5360558]
[1734315203133,0.83701058,224.08,224.0,0.5360558]
[1734315203930,7.6404,224.07,224.0,0.5360558]
[1734315204247,0.83715467,224.06,224.0,0.5360558]
[1734315204806,11.1582,224.05,224.0,0.5360558]
[1734315205003,0.83715078,224.04,224.0,0.5360558]
[1734315206135,11.1592,224.03,224.0,0.5360558]
[1734315206320,0.83719784,224.02,224.0,0.5360558]
[1734315206909,0.83709613,224.05,224.0,0.5360558]
[1734315207614,11.1587,224.04,224.0,0.5360558]
[1734315207923,11.1597,224.02,224.0,0.5360558]
[1734315208232,0.83722654,224.01,224.0,0.5360558]
[1734315215244,0.83722654,224.01,224.0,5.58e-05]
[1734315215444,0.83722654,224.01,223.85,0.66978101]
[1734315215445,11.1607,224.0,223.85,0.66978101]
[1734315215643,11.1607,224.0,223.87,7.49808436]
[1734315215644,0.83742343,223.99,223.87,7.49808436]
[1734315215839,0.83742343,223.99,223.84,30.87006598]
[1734315216040,0.83742343,223.99,223.87,7.49808436]
[1734315216546,11.1617,223.98,223.89,7.49808436]
[1734315216842,0.83734065,223.97,223.89,7.49808436]
[1734315218151,0.83734097,224.0,223.91,7.49808436]
[1734315218726,0.83734097,224.0,223.93,7.49808436]
[1734315220134,8.70437776,224.01,223.95,7.49808436]
[1734315220445,8.70437776,224.01,223.88,0.66974417]
[1734315220446,2.39977776,224.01,223.94,7.49808436]
[1734315220662,1.5626,224.01,223.94,7.49808436]
[1734315220950,0.83711468,224.05,223.95,7.49808436]
[1734315222140,0.83711468,224.05,223.96,7.49808436]
[1734315222745,0.83711468,224.05,223.88,0.66974417]
[1734315222944,0.83711468,224.05,223.94,7.49808436]
[1734315223325,11.1587,224.04,223.94,7.49808436]
[1734315223659,0.83717592,224.03,223.93,7.49808436]
[1734315224690,0.83717592,224.03,223.94,7.49808436]
[1734315224848,0.83717592,224.03,223.95,7.49808436]
[1734315225537,11.1597,224.02,223.88,0.66974417]
[1734315225751,0.83720497,224.01,223.89,7.49808436]
[1734315226138,0.83720497,224.01,223.91,7.49808436]
[1734315226851,0.83720497,224.01,223.87,1.5541]
[1734315227049,36.79845217,224.06,223.87,1.5541]
[1734315227050,11.99802971,224.0,223.87,1.5541]
[1734315227220,11.99802971,224.0,223.9,7.49808436]
[1734315227959,11.99802971,224.0,223.85,0.66984504]
[1734315228128,11.99802971,224.0,223.89,7.49808436]
[1734315228639,8.0539,223.99,223.85,0.66984504]
[1734315228827,0.83730991,223.98,223.89,7.49808436]
[1734315231937,0.83730991,223.98,223.91,7.49808436]
[1734315234265,0.83730991,223.98,223.89,7.49808436]
[1734315242838,0.83730991,223.98,223.83,0.66983897]
[1734315243238,0.83730991,223.98,223.89,7.49808436]
[1734315245674,11.1622,223.97,223.85,19.77968179]
[1734315245849,11.1622,223.97,223.86,7.49808436]
[1734315245850,0.83744273,223.96,223.86,7.49808436]
[1734315246173,0.83744273,223.96,223.85,19.77968179]
[1734315246383,0.83744273,223.96,223.86,7.49808436]
[1734315247267,0.83744273,223.96,223.85,19.77968179]
[1734315247577,12.00075558,223.95,223.85,27.27776615]
[1734315249950,7.6831,223.94,223.85,19.77968179]
[1734315250173,0.83761621,223.93,223.85,19.77968179]
[1734315252182,11.1647,223.92,223.85,19.77968179]
[1734315252481,0.83763683,223.91,223.85,19.77968179]
[1734315254169,18.8293,223.9,223.85,19.77968179]
[1734315254373,18.8293,223.9,223.77,0.5360558]
[1734315254374,2.41112156,223.89,223.77,0.5360558]
[1734315257201,1.82211618,223.89,223.77,0.5360558]
[1734315260367,1.82211618,223.89,223.77,8.03414016]
[1734315260558,1.82211618,223.89,223.78,7.49808436]
[1734315260784,1.82211618,223.89,223.77,8.03414016]